[Event "V. Korchnoi Memorial 2019"]
[Site "St. Petersburg"]
[Date "2019.08.15"]
[Round "2.6"]
[White "Stupak, Kirill"]
[Black "Nikologorsky, Matfei"]
[Result "1-0"]
[ECO "D77"]
[WhiteElo "2561"]
[BlackElo "2214"]
[Annotator "ChessBase"]
[PlyCount "85"]
[EventDate "2019.08.13"]
[EventType "swiss"]
[EventCountry "RUS"]
[SourceTitle "playchess.com"]
[Source "ChessBase"]
[SourceQuality "1"]
[TimeControl "5400+30"]

1. d4 {[%emt 0:01:34]} Nf6 {[%emt 0:00:00]} 2. c4 {[%emt 0:00:39]} g6 {[%emt 0:00:00]} 3. g3 {[%emt 0:00:27]} Bg7 {[%emt 0:00:13]} 4. Bg2 {[%emt 0:00:02]} d5 {[%emt 0:00:21]} 5. Nf3 {[%emt 0:00:04]} O-O {[%emt 0:00:16]} 6. O-O {[%emt 0:00:04]} dxc4 {[%emt 1:32:10]} 7. Na3 {[%emt 1:30:40]} c3 {[%emt 0:00:30]} 8. bxc3 {[%emt 0:00:30]} c5 {[%emt 0:00:30]} 9. e3 {[%emt 0:00:30]} Nc6 {[%emt 0:00:30]} 10. Qe2 {[%emt 0:00:30]} Bf5 {[%emt 0:00:30]} 11. Rd1 {[%emt 0:00:30]} Qa5 {[%emt 0:00:30]} 12. Bb2 {[%emt 0:00:30]} Rfd8 {[%emt 0:00:30]} 13. h3 {[%emt 0:00:30]} Rac8 {[%emt 0:00:30]} 14. Nd2 {[%emt 0:00:30]} cxd4 {[%emt 0:00:30]} 15. exd4 {[%emt 0:00:30]} Be6 {[%emt 0:00:30]} 16. Nb3 {[%emt 0:00:30]} Bxb3 {[%emt 0:00:30]} 17. axb3 {[%emt 0:00:30]} e6 {[%emt 0:00:30]} 18. b4 {[%emt 0:00:30]} Qb6 {[%emt 0:00:30]} 19. b5 {[%emt 0:00:30]} Na5 {[%emt 0:00:30]} 20. c4 {[%emt 0:00:30]} Nb3 {[%emt 0:00:30]} 21. c5 {[%emt 0:00:30]} Qc7 {[%emt 0:00:30]} 22. Rab1 {[%emt 0:00:30]} Nd5 {[%emt 0:00:30]} 23. Qc4 {[%emt 0:00:30]} Na5 {[%emt 0:00:30]} 24. Qa4 {[%emt 0:00:30]} b6 {[%emt 0:00:30]} 25. Rdc1 {[%emt 0:00:30]} Ra8 {[%emt 0:00:30]} 26. Ba1 {[%emt 0:00:30]} Rdc8 {[%emt 0:00:30]} 27. Nc2 {[%emt 0:00:30]} a6 {[%emt 0:00:30]} 28. bxa6 {[%emt 0:00:30]} bxc5 {[%emt 0:00:30]} 29. Nb4 {[%emt 0:00:30]} c4 {[%emt 0:00:30]} 30. Bxd5 {[%emt 0:00:30]} exd5 {[%emt 0:00:30]} 31. Nxd5 {[%emt 0:00:30]} Qd8 {[%emt 0:00:30]} 32. Nb6 {[%emt 0:00:30]} Nb3 {[%emt 0:00:30]} 33. Rxb3 {[%emt 0:00:30]} cxb3 {[%emt 0:00:30]} 34. Rxc8 {[%emt 0:00:30]} Rxc8 {[%emt 0:00:30]} 35. Nxc8 {[%emt 0:00:30]} Qxc8 {[%emt 0:00:30]} 36. a7 {[%emt 0:00:30]} Qa8 {[%emt 0:00:30]} 37. Qa5 {[%emt 0:00:30]} Bf8 {[%emt 0:00:30]} 38. d5 {[%emt 0:00:30]} f6 {[%emt 0:00:30]} 39. Bxf6 {[%emt 0:00:30]} Bd6 {[%emt 0:00:30]} 40. Bd4 {[%emt 0:00:30]} Kf7 {[%emt 0:00:30]} 41. Qb5 {[%emt 0:00:30]} b2 {[%emt 0:00:30]} 42. Qd7+ {[%emt 0:00:30]} Be7 {[%emt 0:00:30]} 43. Bxb2 {[%emt 0:00:30]} 1-0

[Event "V. Korchnoi Memorial 2019"]
[Site "St. Petersburg"]
[Date "2019.08.15"]
[Round "2.8"]
[White "Lintchevski, Daniil"]
[Black "Fakhretdinov, Rinat"]
[Result "1/2-1/2"]
[ECO "D06"]
[WhiteElo "2538"]
[BlackElo "2202"]
[Annotator "ChessBase"]
[PlyCount "109"]
[EventDate "2019.08.13"]
[EventType "swiss"]
[EventCountry "RUS"]
[SourceTitle "playchess.com"]
[Source "ChessBase"]
[SourceQuality "1"]
[TimeControl "5400+30"]

1. Nf3 {[%emt 0:00:00]} d5 {[%emt 0:00:00]} 2. d4 {[%emt 0:00:00]} Bf5 {[%emt 0:00:00]} 3. c4 {[%emt 0:00:48]} e6 {[%emt 0:00:00]} 4. Nc3 {[%emt 0:00:05]} Nc6 {[%emt 0:00:00]} 5. Bf4 {[%emt 0:07:11]} Bd6 {[%emt 0:00:06]} 6. Bxd6 {[%emt 0:06:06]} Qxd6 {[%emt 0:00:10]} 7. e3 {[%emt 0:01:09]} Nge7 {[%emt 0:07:37]} 8. Be2 {[%emt 0:03:12]} dxc4 {[%emt 0:11:53]} 9. Bxc4 {[%emt 0:03:44]} O-O {[%emt 0:00:16]} 10. O-O {[%emt 0:00:37]} Bg4 {[%emt 0:05:50]} 11. Be2 {[%emt 0:01:13]} Ng6 {[%emt 0:09:23]} 12. Rc1 {[%emt 0:01:11]} Rfd8 {[%emt 0:09:13]} 13. h3 {[%emt 0:01:40]} Bxf3 {[%emt 0:00:27]} 14. Bxf3 {[%emt 0:00:06]} e5 {[%emt 0:14:54]} 15. Nb5 {[%emt 0:07:55]} Qb4 {[%emt 0:04:07]} 16. Qb3 {[%emt 0:00:41]} Qxb3 {[%emt 0:08:06]} 17. axb3 {[%emt 0:00:04]} exd4 {[%emt 0:00:11]} 18. Bxc6 {[%emt 0:00:05]} bxc6 {[%emt 0:00:07]} 19. Nxd4 {[%emt 0:00:05]} Ne7 {[%emt 0:00:29]} 20. Rc4 {[%emt 0:00:07]} a5 {[%emt 0:06:12]} 21. Ra1 {[%emt 0:01:27]} g6 {[%emt 0:03:45]} 22. Kf1 {[%emt 0:01:01]} Rd5 {[%emt 0:01:35]} 23. b4 {[%emt 0:01:35]} a4 {[%emt 0:00:59]} 24. Ke2 {[%emt 0:03:54]} Ra6 {[%emt 0:02:28]} 25. Ra3 {[%emt 0:01:55]} Kg7 {[%emt 0:02:55]} 26. Rc1 {[%emt 0:00:17]} Rd8 {[%emt 0:02:07]} 27. Rca1 {[%emt 0:03:27]} Rda8 {[%emt 0:00:51]} 28. e4 {[%emt 0:00:24]} Rb6 {[%emt 0:05:33]} 29. Rxa4 {[%emt 0:00:26]} Rab8 {[%emt 0:00:07]} 30. Rc1 {[%emt 0:02:47]} Rxb4 {[%emt 0:00:23]} 31. Rxb4 {[%emt 0:00:01]} Rxb4 {[%emt 0:00:01]} 32. Kd3 {[%emt 0:00:04]} Rxb2 {[%emt 0:00:29]} 33. Ke3 {[%emt 0:00:08]} h5 {[%emt 0:01:25]} 34. g4 {[%emt 0:00:28]} hxg4 {[%emt 0:00:23]} 35. hxg4 {[%emt 0:00:02]} Ra2 {[%emt 0:01:53]} 36. Nxc6 {[%emt 0:02:00]} Nxc6 {[%emt 0:00:13]} 37. Rxc6 {[%emt 0:00:03]} Ra7 {[%emt 0:00:29]} 38. g5 {[%emt 0:00:27]} Kf8 {[%emt 0:00:26]} 39. f4 {[%emt 0:01:14]} Ke7 {[%emt 0:00:13]} 40. f5 {[%emt 0:00:03]} gxf5 {[%emt 0:00:20]} 41. exf5 {[%emt 0:00:01]} Kd7 {[%emt 0:00:43]} 42. Rh6 {[%emt 0:01:11]} Ra4 {[%emt 0:01:30]} 43. Kf3 {[%emt 0:01:38]} Ke7 {[%emt 0:00:33]} 44. Rc6 {[%emt 0:02:12]} Kd7 {[%emt 0:01:02]} 45. Rc3 {[%emt 0:00:01]} Kd6 {[%emt 0:00:31]} 46. Re3 {[%emt 0:00:01]} c5 {[%emt 0:00:45]} 47. f6 {[%emt 0:00:01]} Ra7 {[%emt 0:00:28]} 48. Ke4 {[%emt 0:00:30]} Ra1 {[%emt 0:00:46]} 49. Rb3 {[%emt 0:03:46]} Re1+ {[%emt 0:00:25]} 50. Kf4 {[%emt 0:00:05]} Rf1+ {[%emt 0:00:19]} 51. Ke4 {[%emt 0:00:04]} Re1+ {[%emt 0:00:19]} 52. Kf4 {[%emt 0:00:02]} Rf1+ {[%emt 0:00:06]} 53. Ke4 {[%emt 0:00:04]} Re1+ {[%emt 0:00:06]} 54. Kf4 {[%emt 0:00:08]} Rf1+ {[%emt 0:00:05]} 55. Ke4 {[%emt 0:50:04] Ke5+} 1/2-1/2

[Event "V. Korchnoi Memorial 2019"]
[Site "St. Petersburg"]
[Date "2019.08.16"]
[Round "3.1"]
[White "Kamsky, Gata"]
[Black "Smirnov, Timofey"]
[Result "1-0"]
[ECO "A03"]
[WhiteElo "2673"]
[BlackElo "2354"]
[Annotator "RC"]
[PlyCount "61"]
[EventDate "2019.08.13"]
[EventType "swiss"]
[EventCountry "RUS"]
[SourceTitle "playchess.com"]
[Source "ChessBase"]
[SourceQuality "1"]
[TimeControl "5400+30"]

1. g3 {[%emt 0:00:22]} d5 {[%emt 0:00:00]} 2. Bg2 {[%emt 0:00:06]} Nf6 {[%emt 0:00:19]} 3. f4 {[%emt 0:00:26]} c5 {[%emt 0:02:05]} 4. Nf3 {[%emt 0:00:08]} Nc6 {[%emt 0:00:22]} 5. d3 {[%emt 0:00:08]} e6 {[%emt 0:02:08]} 6. O-O {[%emt 0:00:45]} Be7 {[%emt 0:01:06]} 7. Nc3 {[%emt 0:06:45]} O-O {[%emt 0:05:22]} 8. e4 {[%emt 0:00:19]} Rb8 {[%emt 0:01:40]} 9. Ne5 {[%emt 0:00:54]} Nd4 {[%emt 0:14:51]} 10. a4 {[%emt 0:05:41]} a6 {[%emt 0:12:07]} 11. a5 {[%emt 0:02:26]} dxe4 {[%emt 0:01:25]} 12. Nxe4 {[%emt 0:00:23]} Nd7 {[%emt 0:02:14]} 13. Be3 {[%emt 0:09:36]} Nf5 {[%emt 0:21:44]} 14. Bf2 {[%emt 0:00:09]} Qc7 {[%emt 0:00:11]} 15. c3 {[%emt 0:03:31]} Nf6 {[%emt 0:10:02]} 16. b4 {[%emt 0:05:10]} Nd5 {[%emt 0:02:24]} 17. Qc1 {[%emt 0:13:37]} cxb4 {[%emt 0:08:34]} 18. c4 {[%emt 0:00:08]} Nc3 {[%emt 0:00:05]} 19. Nxc3 {[%emt 0:00:06]} bxc3 {[%emt 0:00:03]} 20. Qxc3 {[%emt 0:00:07]} Rd8 {[%emt 0:00:35]} 21. Rad1 {[%emt 0:11:23]} Bc5 {[%emt 0:04:52]} 22. d4 {[%emt 0:00:27]} Bd6 {[%emt 0:00:09]} 23. Rb1 {[%emt 0:15:15]} f6 {[%emt 0:02:45]} 24. Nd3 {[%emt 0:00:40]} Bd7 {[%emt 0:04:31]} 25. Rb6 {[%emt 0:00:43]} Rdc8 {[%emt 0:01:03]} 26. c5 {[%emt 0:01:58]} Bf8 {[%emt 0:00:32]} 27. Qb3 {[%emt 0:00:43]} Re8 {[%emt 0:00:41]} 28. g4 {[%emt 0:02:55]} Ne7 {[%emt 0:00:36]} 29. f5 {[%emt 0:00:15]} Nc6 {[%emt 0:00:06]} 30. Bg3 {[%emt 0:01:30]} Qd8 {[%emt 0:00:28]} 31. Bxb8 {[%emt 0:00:15]} 1-0

[Event "V. Korchnoi Memorial 2019"]
[Site "St. Petersburg"]
[Date "2019.08.16"]
[Round "3.4"]
[White "Pecnik, Leo"]
[Black "Gareyev, Timur"]
[Result "0-1"]
[ECO "B10"]
[WhiteElo "2336"]
[BlackElo "2600"]
[Annotator "ChessBase"]
[PlyCount "82"]
[EventDate "2019.08.13"]
[EventType "swiss"]
[EventCountry "RUS"]
[SourceTitle "playchess.com"]
[Source "ChessBase"]
[SourceQuality "1"]
[TimeControl "5400+30"]

1. e4 {[%emt 0:00:00]} c6 {[%emt 0:08:10]} 2. Nf3 {[%emt 0:01:53]} d5 {[%emt 0:01:21]} 3. exd5 {[%emt 0:00:39]} cxd5 {[%emt 0:00:04]} 4. Ne5 {[%emt 0:00:06]} Nc6 {[%emt 0:06:49]} 5. d4 {[%emt 0:01:25]} e6 {[%emt 0:02:25]} 6. Bb5 {[%emt 0:05:56]} Bd7 {[%emt 0:14:27]} 7. Nxd7 {[%emt 0:00:40]} Qxd7 {[%emt 0:00:02]} 8. c3 {[%emt 0:00:13]} Bd6 {[%emt 0:00:52]} 9. Qg4 {[%emt 0:08:23]} f5 {[%emt 0:04:05]} 10. Qh5+ {[%emt 0:00:38]} Qf7 {[%emt 0:00:35]} 11. Qxf7+ {[%emt 0:01:22]} Kxf7 {[%emt 0:00:47]} 12. Nd2 {[%emt 0:00:22]} Nge7 {[%emt 0:00:56]} 13. Nf3 {[%emt 0:01:09]} a6 {[%emt 0:00:10]} 14. Bd3 {[%emt 0:02:00]} b5 {[%emt 0:03:25]} 15. O-O {[%emt 0:06:43]} h6 {[%emt 0:00:16]} 16. Re1 {[%emt 0:00:29]} g5 {[%emt 0:00:50]} 17. h3 {[%emt 0:06:42]} Kf6 {[%emt 0:07:04]} 18. Be3 {[%emt 0:09:27]} Rhc8 {[%emt 0:07:01]} 19. Re2 {[%emt 0:08:02]} Ng6 {[%emt 0:00:08]} 20. Rae1 {[%emt 0:01:48]} Re8 {[%emt 0:01:31]} 21. g4 {[%emt 0:09:48]} Re7 {[%emt 0:03:52]} 22. Bd2 {[%emt 0:08:05]} Bf4 {[%emt 0:01:11]} 23. gxf5 {[%emt 0:05:39]} exf5 {[%emt 0:00:14]} 24. Rxe7 {[%emt 0:00:18]} Ncxe7 {[%emt 0:00:06]} 25. Be3 {[%emt 0:01:02]} Nc6 {[%emt 0:05:25]} 26. Bf1 {[%emt 0:00:56]} h5 {[%emt 0:03:24]} 27. Bg2 {[%emt 0:02:25]} Rd8 {[%emt 0:00:30]} 28. Nd2 {[%emt 0:01:43]} g4 {[%emt 0:01:39]} 29. Nb3 {[%emt 0:04:19]} Bxe3 {[%emt 0:01:38]} 30. fxe3 {[%emt 0:00:05]} Nh4 {[%emt 0:00:08]} 31. Rf1 {[%emt 0:00:45]} Ne7 {[%emt 0:02:21]} 32. hxg4 {[%emt 0:02:29]} hxg4 {[%emt 0:00:03]} 33. Nc5 {[%emt 0:00:27]} a5 {[%emt 0:00:21]} 34. a4 {[%emt 0:01:13]} bxa4 {[%emt 0:00:10]} 35. Ra1 {[%emt 0:00:10]} Neg6 {[%emt 0:00:42]} 36. Rxa4 {[%emt 0:01:06]} Re8 {[%emt 0:00:30]} 37. Rxa5 {[%emt 0:00:43]} Rxe3 {[%emt 0:00:32]} 38. Ra6+ {[%emt 0:01:08]} Kg5 {[%emt 0:03:28]} 39. Bxd5 {[%emt 0:00:47]} Nf4 {[%emt 0:01:22]} 40. Ne6+ {[%emt 0:04:40]} Rxe6 {[%emt 0:00:16]} 41. Bxe6 {[%emt 0:01:13]} g3 {[%emt 0:00:05]} 0-1

[Event "V. Korchnoi Memorial 2019"]
[Site "St. Petersburg"]
[Date "2019.08.16"]
[Round "3.5"]
[White "Goganov, Aleksey"]
[Black "Lesovoi, Evgenij"]
[Result "1/2-1/2"]
[ECO "A17"]
[WhiteElo "2564"]
[BlackElo "2337"]
[Annotator "ChessBase"]
[PlyCount "118"]
[EventDate "2019.08.13"]
[EventType "swiss"]
[EventCountry "RUS"]
[SourceTitle "playchess.com"]
[Source "ChessBase"]
[SourceQuality "1"]
[TimeControl "5400+30"]

1. Nf3 {[%emt 0:00:00]} Nf6 {[%emt 0:00:14]} 2. c4 {[%emt 0:00:00]} e6 {[%emt 0:04:53]} 3. Nc3 {[%emt 0:00:00]} d5 {[%emt 0:00:58]} 4. e3 {[%emt 0:00:00]} Be7 {[%emt 0:02:26]} 5. b3 {[%emt 0:00:00]} b6 {[%emt 0:00:51]} 6. Bb2 {[%emt 0:03:29]} Bb7 {[%emt 0:01:59]} 7. cxd5 {[%emt 0:00:07]} exd5 {[%emt 0:00:32]} 8. d4 {[%emt 0:00:06]} Nbd7 {[%emt 0:05:46]} 9. Bd3 {[%emt 0:00:06]} Bd6 {[%emt 0:00:56]} 10. O-O {[%emt 0:01:56]} a6 {[%emt 0:00:23]} 11. Qc2 {[%emt 0:12:49]} O-O {[%emt 0:08:51]} 12. e4 {[%emt 0:00:14]} dxe4 {[%emt 0:03:22]} 13. Nxe4 {[%emt 0:00:05]} Nxe4 {[%emt 0:00:55]} 14. Bxe4 {[%emt 0:00:08]} Bxe4 {[%emt 0:00:04]} 15. Qxe4 {[%emt 0:00:05]} Nf6 {[%emt 0:00:08]} 16. Qc2 {[%emt 0:02:34]} Qd7 {[%emt 0:05:07]} 17. Ne5 {[%emt 0:01:03]} Qb5 {[%emt 0:00:20]} 18. Rae1 {[%emt 0:00:24]} Rfe8 {[%emt 0:03:37]} 19. Re3 {[%emt 0:02:41]} Re6 {[%emt 0:03:31]} 20. Rh3 {[%emt 0:08:55]} Rae8 {[%emt 0:02:31]} 21. f4 {[%emt 0:00:06]} Qd5 {[%emt 0:05:41]} 22. g4 {[%emt 0:01:15]} Qe4 {[%emt 0:02:01]} 23. Qxe4 {[%emt 0:00:26]} Nxe4 {[%emt 0:00:07]} 24. f5 {[%emt 0:04:08]} R6e7 {[%emt 0:02:36]} 25. Nc6 {[%emt 0:00:26]} Rd7 {[%emt 0:00:18]} 26. Re3 {[%emt 0:00:51]} Nf6 {[%emt 0:01:06]} 27. Rxe8+ {[%emt 0:00:11]} Nxe8 {[%emt 0:00:05]} 28. g5 {[%emt 0:11:40]} f6 {[%emt 0:09:28]} 29. g6 {[%emt 0:06:50]} hxg6 {[%emt 0:00:08]} 30. fxg6 {[%emt 0:00:03]} a5 {[%emt 0:00:08]} 31. Kg2 {[%emt 0:03:47]} Bb4 {[%emt 0:02:47]} 32. a3 {[%emt 0:00:07]} Be7 {[%emt 0:02:08]} 33. Re1 {[%emt 0:07:42]} Kf8 {[%emt 0:00:05]} 34. Kh3 {[%emt 0:06:54]} Nd6 {[%emt 0:19:05]} 35. a4 {[%emt 0:00:05]} Nc8 {[%emt 0:01:53]} 36. Rxe7 {[%emt 0:03:20]} Nxe7 {[%emt 0:00:16]} 37. Ba3 {[%emt 0:00:03]} Ke8 {[%emt 0:00:25]} 38. Nxe7 {[%emt 0:01:19]} c5 {[%emt 0:01:42]} 39. Nf5 {[%emt 0:00:04]} cxd4 {[%emt 0:00:32]} 40. Bc1 {[%emt 0:01:00]} Kf8 {[%emt 0:01:58]} 41. Kg4 {[%emt 0:00:17]} d3 {[%emt 0:01:53]} 42. Bd2 {[%emt 0:00:06]} Rd5 {[%emt 0:00:30]} 43. h4 {[%emt 0:00:24]} b5 {[%emt 0:01:17]} 44. h5 {[%emt 0:00:29]} bxa4 {[%emt 0:00:57]} 45. bxa4 {[%emt 0:00:58]} Re5 {[%emt 0:00:14]} 46. Ng3 {[%emt 0:06:37]} Rc5 {[%emt 0:01:55]} 47. Kf4 {[%emt 0:00:32]} Rc4+ {[%emt 0:00:16]} 48. Kf5 {[%emt 0:00:48]} Rc5+ {[%emt 0:04:07]} 49. Ke4 {[%emt 0:00:19]} Rc4+ {[%emt 0:00:02]} 50. Kf3 {[%emt 0:07:28]} Rxa4 {[%emt 0:00:49]} 51. h6 {[%emt 0:00:06]} gxh6 {[%emt 0:02:27]} 52. Bxh6+ {[%emt 0:00:06]} Ke8 {[%emt 0:00:18]} 53. Ne4 {[%emt 0:03:34]} Rd4 {[%emt 0:00:51]} 54. Be3 {[%emt 0:02:25]} Rd8 {[%emt 0:00:58]} 55. Bc5 {[%emt 0:00:25]} Kd7 {[%emt 0:00:08]} 56. Bb6 {[%emt 0:00:50]} Ra8 {[%emt 0:00:37]} 57. Nxf6+ {[%emt 0:00:24]} Ke6 {[%emt 0:00:06]} 58. Ne4 {[%emt 0:00:17]} Rg8 {[%emt 0:00:52]} 59. Bxa5 {[%emt 0:00:04]} Ke5 {[%emt 0:01:20]} 1/2-1/2

[Event "V. Korchnoi Memorial 2019"]
[Site "St. Petersburg"]
[Date "2019.08.16"]
[Round "3.6"]
[White "Ovchinnikov, Vsevolod"]
[Black "Stupak, Kirill"]
[Result "0-1"]
[ECO "A62"]
[WhiteElo "2316"]
[BlackElo "2561"]
[Annotator "ChessBase"]
[PlyCount "170"]
[EventDate "2019.08.13"]
[EventType "swiss"]
[EventCountry "RUS"]
[SourceTitle "playchess.com"]
[Source "ChessBase"]
[SourceQuality "1"]
[TimeControl "5400+30"]

1. d4 {[%emt 1:30:30]} g6 {[%emt 1:30:30]} 2. c4 {[%emt 0:00:30]} Bg7 {[%emt 0:00:30]} 3. Nf3 {[%emt 0:00:30]} Nf6 {[%emt 0:00:30]} 4. g3 {[%emt 0:00:30]} c5 {[%emt 0:00:30]} 5. d5 {[%emt 0:00:30]} O-O 6. Nc3 e6 7. Bg2 exd5 8. cxd5 d6 9. O-O Re8 10. Bf4 Na6 11. Re1 Bf5 12. Nd2 Nh5 13. e4 Nxf4 14. gxf4 Bc8 15. Nc4 {[%emt 0:05:00]} Bxc3 {[%emt 0:05:30]} 16. bxc3 {[%emt 0:00:30]} b5 {[%emt 0:00:30]} 17. Nd2 {[%emt 0:00:30]} Rb8 {[%emt 0:00:30]} 18. Re3 {[%emt 0:00:30]} Nc7 {[%emt 0:00:30]} 19. Nb3 {[%emt 0:00:30]} Bb7 {[%emt 0:00:30]} 20. Qd2 {[%emt 0:00:30]} Qh4 {[%emt 0:00:30]} 21. Rh3 {[%emt 0:00:30]} Qf6 {[%emt 0:00:30]} 22. Rg3 {[%emt 0:00:30]} Kh8 {[%emt 0:00:30]} 23. Rd1 {[%emt 0:00:30]} Rbd8 {[%emt 0:00:30]} 24. Qc1 {[%emt 0:00:30]} Ba8 {[%emt 0:00:30]} 25. Bf3 {[%emt 0:00:30]} Re7 {[%emt 0:00:30]} 26. Bg2 {[%emt 0:00:30]} Ne8 {[%emt 0:00:30]} 27. c4 {[%emt 0:00:30]} a6 {[%emt 0:00:30]} 28. Qc3 {[%emt 0:00:30]} Kg7 {[%emt 0:00:30]} 29. e5 {[%emt 0:00:30]} dxe5 {[%emt 0:00:30]} 30. fxe5 {[%emt 0:00:30]} Rxe5 {[%emt 0:00:30]} 31. Nxc5 {[%emt 0:00:30]} Nd6 {[%emt 0:00:30]} 32. Nd3 {[%emt 0:00:30]} Rf5 {[%emt 0:00:30]} 33. Qxf6+ {[%emt 0:00:30]} Rxf6 {[%emt 0:00:30]} 34. c5 {[%emt 0:00:30]} Nc4 {[%emt 0:00:30]} 35. d6 {[%emt 0:00:30]} Bxg2 {[%emt 0:00:30]} 36. Kxg2 {[%emt 0:00:30]} Rf5 {[%emt 0:00:30]} 37. a4 {[%emt 0:00:30]} Rd5 {[%emt 0:00:30]} 38. axb5 {[%emt 0:00:30]} axb5 39. Rb1 {[%emt 0:00:30]} h5 {[%emt 0:01:00]} 40. h4 {[%emt 0:00:30]} Kf8 {[%emt 0:00:30]} 41. Rb4 {[%emt 0:00:30]} Ra8 {[%emt 0:00:30]} 42. Rf3 {[%emt 0:00:30]} Kg7 {[%emt 0:00:30]} 43. Rxb5 {[%emt 0:00:30]} Nxd6 {[%emt 0:00:30]} 44. Rb4 {[%emt 0:00:30]} Nf5 {[%emt 0:00:30]} 45. Rc4 {[%emt 0:00:30]} Rc8 {[%emt 0:00:30]} 46. Kh3 {[%emt 0:00:30]} Kf6 {[%emt 0:00:30]} 47. Rb4 {[%emt 0:00:30]} Rc7 {[%emt 0:00:30]} 48. Rc4 {[%emt 0:00:30]} Kg7 {[%emt 0:00:30]} 49. Rc3 {[%emt 0:00:30]} Nd4 {[%emt 0:00:30]} 50. Re3 {[%emt 0:00:30]} Ne6 51. Re4 {[%emt 0:00:30]} Rcd7 {[%emt 0:01:00]} 52. Ne5 {[%emt 0:00:30]} Rxc5 {[%emt 0:00:30]} 53. Nxd7 {[%emt 0:00:30]} Rxc3+ {[%emt 0:00:30]} 54. Kg2 {[%emt 0:00:30]} Rd3 {[%emt 0:00:30]} 55. Ne5 {[%emt 0:00:30]} Rd5 {[%emt 0:00:30]} 56. Nf3 {[%emt 0:00:30]} Kf6 {[%emt 0:00:30]} 57. Rb4 {[%emt 0:00:30]} Kf5 {[%emt 0:00:30]} 58. Ra4 {[%emt 0:00:30]} f6 {[%emt 0:00:30]} 59. Nh2 {[%emt 0:00:30]} Nf4+ {[%emt 0:00:30]} 60. Kg3 Rd3+ {[%emt 0:00:30]} 61. f3 {[%emt 0:01:00]} Ne2+ {[%emt 0:00:30]} 62. Kf2 {[%emt 0:00:30]} Nc3 {[%emt 0:00:30]} 63. Rc4 {[%emt 0:00:30]} Rd2+ {[%emt 0:00:30]} 64. Kg1 {[%emt 0:00:30]} Ne2+ {[%emt 0:00:30]} 65. Kf2 {[%emt 0:00:30]} Nf4+ {[%emt 0:00:30]} 66. Kg1 Rg2+ {[%emt 0:00:30]} 67. Kh1 {[%emt 0:01:00]} Rg3 {[%emt 0:00:30]} 68. Rc5+ {[%emt 0:00:30]} Ke6 69. Rc3 {[%emt 0:00:30]} Rh3 {[%emt 0:01:00]} 70. Rc6+ {[%emt 0:00:30]} Ke5 {[%emt 0:00:30]} 71. Rc5+ {[%emt 0:00:30]} Kd6 {[%emt 0:00:30]} 72. Rc2 {[%emt 0:00:30]} Rxh4 {[%emt 0:00:30]} 73. Kg1 Rh3 {[%emt 0:00:30]} 74. Rc4 {[%emt 0:01:00]} g5 {[%emt 0:00:30]} 75. Ra4 {[%emt 0:00:30]} Rg3+ {[%emt 0:00:30]} 76. Kf1 {[%emt 0:00:30]} Rh3 {[%emt 0:00:30]} 77. Kg1 {[%emt 0:00:30]} Ke5 {[%emt 0:00:30]} 78. Ra5+ {[%emt 0:00:30]} Ke6 {[%emt 0:00:30]} 79. Ra6+ {[%emt 0:00:30]} Kf5 {[%emt 0:00:30]} 80. Ra5+ {[%emt 0:00:30]} Kg6 {[%emt 0:00:30]} 81. Ra4 {[%emt 0:00:30]} Rg3+ {[%emt 0:00:30]} 82. Kf1 {[%emt 0:00:30]} h4 {[%emt 0:00:30]} 83. Ra2 {[%emt 0:00:30]} h3 {[%emt 0:00:30]} 84. Rf2 {[%emt 0:00:30]} f5 {[%emt 0:00:30]} 85. Rd2 {[%emt 0:00:30]} Rg2 {[%emt 0:00:30]} 0-1

[Event "V. Korchnoi Memorial 2019"]
[Site "St. Petersburg"]
[Date "2019.08.16"]
[Round "3.7"]
[White "Sorokin, Aleksey"]
[Black "Gubajdullin, Alexei"]
[Result "1/2-1/2"]
[ECO "D07"]
[WhiteElo "2537"]
[BlackElo "2331"]
[Annotator "ChessBase"]
[PlyCount "121"]
[EventDate "2019.08.13"]
[EventType "swiss"]
[EventCountry "RUS"]
[SourceTitle "playchess.com"]
[Source "ChessBase"]
[SourceQuality "1"]
[TimeControl "5400+30"]

1. d4 {[%emt 0:00:00]} d5 {[%emt 0:00:29]} 2. c4 {[%emt 0:00:08]} e5 {[%emt 0:01:19]} 3. dxe5 {[%emt 0:01:44]} d4 {[%emt 0:00:03]} 4. a3 {[%emt 0:04:02]} Nc6 {[%emt 0:00:36]} 5. e3 {[%emt 0:01:32]} dxe3 {[%emt 0:06:40]} 6. Qxd8+ {[%emt 0:01:04]} Kxd8 {[%emt 0:00:02]} 7. Bxe3 {[%emt 0:00:50]} Nxe5 {[%emt 0:00:14]} 8. Nc3 {[%emt 0:01:23]} Be6 {[%emt 0:02:22]} 9. O-O-O+ {[%emt 0:02:34]} Kc8 {[%emt 0:00:28]} 10. Nf3 {[%emt 0:22:48]} Nxc4 {[%emt 0:04:39]} 11. Bxc4 {[%emt 0:30:52]} Bxc4 {[%emt 0:00:03]} 12. Ne5 {[%emt 0:00:10]} Be6 {[%emt 0:06:31]} 13. Nb5 {[%emt 0:01:04]} b6 {[%emt 0:49:59]} 14. Nc6 {[%emt 0:03:58]} Ne7 {[%emt 0:00:11]} 15. Rd8+ {[%emt 0:02:26]} Kb7 {[%emt 0:00:02]} 16. Rxa8 {[%emt 0:00:47]} Nxc6 {[%emt 0:00:04]} 17. Re8 {[%emt 0:00:58]} Bd7 {[%emt 0:01:10]} 18. Re4 {[%emt 0:00:32]} Na5 {[%emt 0:00:06]} 19. Nc3 {[%emt 0:02:01]} f5 {[%emt 0:07:09]} 20. Rd1 {[%emt 0:02:27]} Bc6 {[%emt 0:03:51]} 21. Rf4 {[%emt 0:01:09]} Bxg2 {[%emt 0:01:38]} 22. Rxf5 {[%emt 0:00:57]} Bh3 {[%emt 0:01:54]} 23. Rf4 {[%emt 0:01:48]} Nc6 {[%emt 0:05:20]} 24. Ne4 {[%emt 0:03:32]} h6 {[%emt 0:02:02]} 25. Ng3 {[%emt 0:01:35]} g5 {[%emt 0:03:55]} 26. Re4 {[%emt 0:02:27]} Bd6 {[%emt 0:00:26]} 27. Rc4 {[%emt 0:03:17]} Rf8 {[%emt 0:00:34]} 28. b4 {[%emt 0:01:26]} Ne5 {[%emt 0:01:11]} 29. Rc3 {[%emt 0:00:18]} Nf3 {[%emt 0:00:32]} 30. Rdd3 {[%emt 0:01:34]} Be5 {[%emt 0:00:37]} 31. Bc5 {[%emt 0:00:48]} Bf4+ {[%emt 0:00:48]} 32. Kb2 {[%emt 0:00:57]} bxc5 {[%emt 0:00:25]} 33. Rxf3 {[%emt 0:00:03]} cxb4 {[%emt 0:00:13]} 34. axb4 {[%emt 0:00:04]} g4 {[%emt 0:00:50]} 35. Rfd3 {[%emt 0:01:07]} Be5 {[%emt 0:00:06]} 36. Ne4 {[%emt 0:00:12]} Bg2 {[%emt 0:00:43]} 37. Nc5+ {[%emt 0:02:13]} Kc8 {[%emt 0:00:07]} 38. Ne6 {[%emt 0:01:21]} Rxf2+ {[%emt 0:00:11]} 39. Kb3 {[%emt 0:00:08]} Bxc3 {[%emt 0:00:29]} 40. Rd8+ {[%emt 0:00:06]} Kb7 {[%emt 0:00:11]} 41. Kxc3 {[%emt 0:00:01]} Bf1 {[%emt 0:01:30]} 42. Rg8 {[%emt 0:00:48]} h5 {[%emt 0:00:44]} 43. Rg6 {[%emt 0:00:02]} Kc8 {[%emt 0:00:31]} 44. Rg7 {[%emt 0:00:21]} Rxh2 {[%emt 0:00:25]} 45. Nc5 {[%emt 0:00:15]} Kd8 {[%emt 0:00:30]} 46. Ne6+ {[%emt 0:00:06]} Kc8 {[%emt 0:00:06]} 47. Nc5 {[%emt 0:00:03]} c6 {[%emt 0:00:51]} 48. Ne4 {[%emt 0:01:28]} Re2 {[%emt 0:00:36]} 49. Nd6+ {[%emt 0:00:24]} Kd8 {[%emt 0:00:09]} 50. Nb7+ {[%emt 0:00:30]} Ke8 {[%emt 0:00:08]} 51. Nd6+ {[%emt 0:00:03]} Kd8 {[%emt 0:00:23]} 52. Nb7+ {[%emt 0:00:04]} Ke8 {[%emt 0:01:22]} 53. Nd6+ {[%emt 0:00:02]} Kf8 {[%emt 0:00:33]} 54. Rf7+ {[%emt 0:00:05]} Kg8 {[%emt 0:00:04]} 55. Rxf1 {[%emt 0:00:06]} h4 {[%emt 0:00:27]} 56. Rg1 {[%emt 0:01:16]} g3 {[%emt 0:00:30]} 57. Nf5 {[%emt 0:00:40]} Rh2 {[%emt 0:00:05]} 58. Nxh4 {[%emt 0:01:43]} Rxh4 {[%emt 0:00:11]} 59. Rxg3+ {[%emt 0:00:06]} Kf7 {[%emt 0:00:07]} 60. Re3 {[%emt 0:00:12]} Kf6 {[%emt 0:00:29]} 61. Re2 {[%emt 0:00:24]} 1/2-1/2